Cogmind - Beta 11.1 @@@ ROGUE MODE // 2022.05.19 @ 01:13:14 Player: Jezoensis Result: Escaped! Performance ------------- Evolutions (9) 4500 Regions Visited (20) 4000 Robots Destroyed (146) 730 Value Destroyed (5218) 5218 Prototype IDs (40) 800 Alien Tech Used (0) 0 Bonus (6993) 6993 TOTAL SCORE: 22241 Bonus ------- High Alert Combat Kills 819 Follower Combat Kills 1230 Entered Garrisons 200 Used RIF Installer 500 Entered DSFs 500 Network Hubs Disabled 400 Aligned with FarCom 300 Built Enhanced Grunts 300 Met R17 at Cetus 500 Win 3000 Friendly Fire -756 Cogmind --------- Core Integrity 1600/1600 Matter 300/300 Energy 926/940 System Corruption 0% Temperature Cool (6) Movement Treading (160) Location To Epsilon Eridani Parts ------- > --- POWER (2) -------- Particle Reactor Quantum Reactor > --- PROPULSION (4) --- Enhanced Armored Heavy Treads Enhanced Armored Heavy Treads > --- UTILITY (14) ----- High-capacity Storage Unit Energy Well Advanced Trap Scanner Spectral Analyzer Advanced Terrain Scanner Advanced Terrain Scan Processor Advanced Salvage Targeting Computer Advanced Target Analyzer Core Analyzer Improved Weapon Cycler Improved Transmission Jammer Improved Cloaking Device Improved Force Field Advanced System Shield > --- WEAPON (5) ------- Heavy Machine Gun KE Penetrator Railgun Railgun Linear Accelerator > --- INVENTORY (20) --- Centrium Heavy Treads Enhanced Armored Heavy Treads Experimental Heat Sink Matter Compressor (250) Weapon Cycler Improved Transmission Jammer Advanced Focal Shield Advanced Thermal Shield Advanced Shield Generator Advanced Shield Generator Long-range Tractor Beam Tesla Rifle Railgun Railgun Advanced KE Penetrator Advanced KE Penetrator Advanced KE Penetrator Ragnarok Missile Launcher Peak State ------------ > --- POWER ------------ Particle Reactor Quantum Reactor > --- PROPULSION ------- Enhanced Armored Heavy Treads Enhanced Armored Heavy Treads > --- UTILITY ---------- High-capacity Storage Unit Energy Well Advanced Trap Scanner Spectral Analyzer Advanced Terrain Scanner Advanced Terrain Scan Processor Advanced Salvage Targeting Computer Advanced Target Analyzer Core Analyzer Improved Weapon Cycler Improved Transmission Jammer Improved Cloaking Device Improved Force Field Advanced System Shield > --- WEAPON ----------- Heavy Machine Gun KE Penetrator Railgun Railgun Linear Accelerator > --- INVENTORY -------- Centrium Heavy Treads Enhanced Armored Heavy Treads Experimental Heat Sink Matter Compressor Weapon Cycler Improved Transmission Jammer Advanced Focal Shield Advanced Thermal Shield Advanced Shield Generator Advanced Shield Generator Advanced Shield Generator Long-range Tractor Beam Railgun Railgun Advanced KE Penetrator Advanced KE Penetrator Advanced KE Penetrator Ragnarok Missile Launcher [Rating: 184] Favorites ----------- Power Quantum Reactor Engine Heavy Ion Engine Power Core Neutrino Core Reactor Quantum Reactor Propulsion Light Treads Treads Light Treads Wheel Wheel Hover Unit Aerolev Unit Utility Terrain Scan Processor Device Trap Scanner Storage High-capacity Storage Unit Processor Terrain Scan Processor Hackware Advanced System Shield Protection Improved Utility Shielding Weapon Heavy Machine Gun Energy Gun Heavy Particle Gun Energy Cannon EM Pulse Cannon Ballistic Gun Heavy Machine Gun Ballistic Cannon Linear Accelerator Launcher Rocket Launcher Special Weapon Mining Laser Impact Weapon Power Maul Build | -11 -10 -10 -9 -9 -9 -8 -8 -8 -7 -6 -6 -5 -5 -5 -5 -5 -4 -3 -2 -1 ------- Run | Scr Mat Min Mat Min Exi Min Mat Gar Fac Fac DSF Fac Ext Cet Arc Hub Fac Res Res Acc Slots Evolved 18 | . . . 2 . . . 2 . 2 2 . 2 . . . . 2 2 2 2 Power 1 | . . . . . . . . . . . . . . . . . 1 . . . Propulsion 2 | . . . 1 . . . . . . . . 1 . . . . . . . . Utility 12 | . . . 1 . . . 1 . 2 1 . 1 . . . . 1 2 1 2 Weapon 3 | . . . . . . . 1 . . 1 . . . . . . . . 1 . Parts Attached 350 | 7 3 4 17 9 . 6 53 1 6 3 20 15 70 28 5 10 41 26 22 4 Power 13 | 1 . . 2 1 . 1 1 . . . . 1 1 1 . . 1 2 1 . Engine 6 | 1 . . 2 1 . 1 1 . . . . . . . . . . . . . Core 1 | . . . . . . . . . . . . 1 . . . . . . . . Reactor 6 | . . . . . . . . . . . . . 1 1 . . 1 2 1 . Propulsion 43 | 2 . 1 2 4 . . 12 . 2 1 1 1 5 6 1 . 1 2 2 . Treads 36 | . . . . 3 . . 11 . 2 1 1 1 5 6 1 . 1 2 2 . Leg . | . . . . . . . . . . . . . . . . . . . . . Wheel 6 | 2 . 1 2 1 . . . . . . . . . . . . . . . . Hover 1 | . . . . . . . 1 . . . . . . . . . . . . . Flight . | . . . . . . . . . . . . . . . . . . . . . Utility 222 | 2 3 1 7 4 . 3 18 1 2 1 10 12 60 15 3 7 33 22 14 4 Device 174 | 1 1 . 3 2 . 1 11 1 1 . 9 11 51 12 3 7 29 15 13 3 Storage 20 | 1 1 . . . . 1 2 . . . . 1 9 . . . 1 4 . . Processor 20 | . 1 1 3 1 . 1 3 . 1 . 1 . . 2 . . 2 2 1 1 Hackware 4 | . . . . . . . 2 . . . . . . . . . 1 1 . . Protection 4 | . . . 1 1 . . . . . 1 . . . 1 . . . . . . Artifact . | . . . . . . . . . . . . . . . . . . . . . Weapon 72 | 2 . 2 6 . . 2 22 . 2 1 9 1 4 6 1 3 6 . 5 . Energy Gun 8 | . . . . . . . 3 . . . 2 . . 1 . 1 1 . . . Energy Cannon 2 | . . . . . . . 1 . . . 1 . . . . . . . . . Ballistic Gun 44 | 2 . 1 4 . . 1 10 . 1 1 5 1 4 5 1 2 5 . 1 . Ballistic Cannon 4 | . . . . . . . 1 . . . . . . . . . . . 3 . Launcher 7 | . . 1 2 . . 1 2 . . . . . . . . . . . 1 . Special Weapon 1 | . . . . . . . 1 . . . . . . . . . . . . . Impact Weapon 6 | . . . . . . . 4 . 1 . 1 . . . . . . . . . Slashing Weapon . | . . . . . . . . . . . . . . . . . . . . . Piercing Weapon . | . . . . . . . . . . . . . . . . . . . . . Special Melee Weapon . | . . . . . . . . . . . . . . . . . . . . . Unidentified Prototypes 10 | . . . . . . . 2 . . . . . . 3 . . 1 2 2 . Corrupted Parts 1 | . . . . . . . . . . . . . . . . . 1 . . . System Corruption 6 | . . . . . . . . . . . . . . . . . 6 . . . Parts Lost 23 | . . . 1 6 . 3 9 . . . . . 2 . . . 2 . . . Power 4 | . . . 1 1 . 1 1 . . . . . . . . . . . . . Propulsion 7 | . . . . 3 . . 3 . . . . . 1 . . . . . . . Utility 5 | . . . . 2 . . 1 . . . . . . . . . 2 . . . Weapon 7 | . . . . . . 2 4 . . . . . 1 . . . . . . . Highest Loss Streak 6 | . . . 1 6 . 3 5 . . . . . 2 . . . 2 . . . To Critical Strikes 1 | . . . . . . . 1 . . . . . . . . . . . . . Average Slot Usage (%) 93 | . 99 100 99 97 100 88 97 100 99 90 90 94 93 92 88 88 88 90 90 91 Engine 4 | . 14 14 11 8 11 11 8 9 7 6 6 1 . . . . . . . . Reactor 3 | . . . . . . . . . . . . . 1 5 5 5 10 9 8 8 Treads 15 | . . . . 14 33 33 26 27 22 13 13 17 16 15 11 11 10 9 8 8 Wheel 2 | . 28 28 33 18 . . . . . . . . . . . . . . . . Device 15 | . 11 11 10 9 11 10 7 9 15 13 12 14 15 16 17 17 21 21 20 23 Storage 8 | . 14 14 11 11 11 11 9 9 7 6 6 7 6 5 5 5 5 9 8 8 Processor 16 | . 2 2 10 11 11 11 18 18 23 20 20 17 17 21 17 17 15 19 17 20 Hackware 1 | . . . . . . . . . . . . . . . . . 4 1 4 4 Protection 1 | . . . . . . . . . . 4 6 5 5 1 5 5 . . . . Energy Gun 1 | . . . . . . . 4 9 2 . 2 . . . . . . . . . Ballistic Gun 20 | . 28 27 22 22 22 11 17 18 15 18 18 23 23 22 23 22 20 19 17 16 Naked Turns . | . . . . . . . . . . . . . . . . . . . . . Heaviest Build 159 | 15 30 30 41 35 30 26 60 59 60 66 78 87 122 132 133 129 159 127 136 136 Greatest Support 160 | 20 20 20 36 60 60 60 66 62 98 92 92 120 130 150 160 160 160 160 160 160 Greatest Overweight (x) 3 | . 1 1 1 3 . . . . . . . . . . . . . . . . Average Overweight (x) . | . . 1 . . . . . . . . . . . . . . . . . . Largest Inventory Capacity 25 | 8 15 15 15 15 15 15 20 20 20 20 20 20 25 25 25 25 25 25 20 20 Average Capacity 19 | 7 13 15 15 15 15 15 18 20 20 20 20 20 20 25 25 25 25 20 20 20 Most Carried 25 | 6 10 13 15 15 14 14 20 20 20 20 20 20 24 25 25 25 25 25 20 20 Average Carried 18 | 3 9 11 13 12 11 13 18 20 19 18 19 18 19 24 24 25 24 19 19 19 Final Capacity 25 | 8 15 15 15 15 15 15 20 20 20 20 20 20 25 25 25 25 25 20 20 20 Final Carried 25 | 6 10 13 15 10 14 14 20 20 20 18 20 20 24 25 25 25 25 20 20 20 Class Distribution -------------------- 48% | Scavenger-Skirmisher 29% | Scavenger-Mutant 9% | Mutant 6% | Skirmisher 3% | Scavenger-Assassin Dominant Class ---------------- Mutant | -10/Materials Mutant | -10/Mines Mutant | -9/Materials Scavenger-Mutant | -9/Mines Scavenger-Mutant | -9/Exiles Scavenger-Mutant | -8/Mines Scavenger-Skirmisher | -8/Materials Scavenger-Skirmisher | -8/Garrison Scavenger-Skirmisher | -7/Factory Assassin | -6/Factory Skirmisher | -6/DSF Skirmisher | -5/Factory Scavenger-Skirmisher | -5/Extension Scavenger-Skirmisher | -5/Cetus Scavenger-Skirmisher | -5/Archives Scavenger-Skirmisher | -5/Hub_04(d) Scavenger-Skirmisher | -4/Factory Scavenger-Skirmisher | -3/Research Scavenger-Mutant | -2/Research Scavenger-Skirmisher | -1/Access Resources | -11 -10 -10 -9 -9 -9 -8 -8 -8 -7 -6 -6 -5 -5 -5 -5 -5 -4 -3 -2 -1 ----------- Run | Scr Mat Min Mat Min Exi Min Mat Gar Fac Fac DSF Fac Ext Cet Arc Hub Fac Res Res Acc Matter Collected 8038 | 336 80 37 445 209 15 111 955 . 40 . 539 179 1693 725 118 307 719 789 511 230 Remotely 3159 | . . . . . . . 120 . . . 304 . 802 405 . 223 487 539 279 . Salvage Created 8324 | 149 149 37 387 250 . 108 1179 . 40 . 669 179 1470 477 80 1020 869 459 492 310 Parts 421 | 10 5 3 30 9 . 7 76 . 4 . 27 9 73 23 9 31 51 23 19 12 Haulers Intercepted 8 | . 1 . 3 . . . 2 . . . . . 1 . . 1 . . . . Recyclers Shooed 11 | . . . . 2 . . 3 . . . . . 3 . . . 3 . . . Parts Field Recycled . | . . . . . . . . . . . . . . . . . . . . . Retrieved Matter . | . . . . . . . . . . . . . . . . . . . . . Parts Self-Destructed . | . . . . . . . . . . . . . . . . . . . . . Prevented . | . . . . . . . . . . . . . . . . . . . . . Kills | -11 -10 -10 -9 -9 -9 -8 -8 -8 -7 -6 -6 -5 -5 -5 -5 -5 -4 -3 -2 -1 ------- Run | Scr Mat Min Mat Min Exi Min Mat Gar Fac Fac DSF Fac Ext Cet Arc Hub Fac Res Res Acc Combat Hostiles Destroyed 88 | . 2 2 4 1 . 3 16 . . . 9 2 19 4 . 6 10 4 6 . Guns 70 | . 2 . 2 1 . 1 14 . . . 4 2 19 4 . 2 10 4 5 . Cannons 4 | . . . . . . . 1 . . . 2 . . . . . . . 1 . AOE 13 | . . 2 2 . . 2 1 . . . 2 . . . . 4 . . . . Classes Destroyed 17 | 2 2 1 1 . . . 6 . . . 2 . 1 . 1 . 1 . . . Worker 11 | . . 1 4 . . . . . . . . . 1 . . 4 . . . 1 Builder 5 | . . . 1 . . 1 . . . . . . 2 . . . . . . 1 Tunneler 4 | 3 . . . 1 . . . . . . . . . . . . . . . . Hauler 8 | . 1 . 3 . . . 2 . . . . . 1 . . 1 . . . . Recycler 18 | 1 . . . 2 . . 3 . . . . . 2 . . 4 2 1 1 2 Mechanic 1 | . . . . . . . 1 . . . . . . . . . . . . . Operator 2 | . . . . . . . . . . . . . . . 2 . . . . . Watcher 7 | . . . . . . . 3 . 1 . . . 1 1 . 1 . . . . Swarmer 30 | . . . . . . . 6 . . . 4 . 9 . . 3 4 . 4 . Grunt 20 | . 2 2 4 . . 3 2 . . . . . 4 . . 1 . 2 . . Brawler 1 | . . . . . . . 1 . . . . . . . . . . . . . Sentry 15 | . . . . . . . 5 . . . 1 2 2 . . 2 . 1 2 . Specialist 5 | . . . . . . . . . . . 3 . . . . . 2 . . . Hunter 4 | . . . . . . . 2 . . . . . 2 . . . . . . . Programmer 4 | . . . . . . . . . . . . . . . . . 3 1 . . Heavy 2 | . . . . . . . . . . . 1 . . . . . 1 . . . Behemoth 1 | . . . . . . . . . . . . . 1 . . . . . . . Cetus Guard 4 | . . . . . . . . . . . . . . 4 . . . . . . Thug 1 | . . . . . . . . . . . . . 1 . . . . . . . Guerrilla 2 | . . . . . . . . . . . . . . 2 . . . . . . Best Kill Streak 16 | 2 1 2 4 2 . 4 4 . 1 . 4 1 8 3 2 16 4 4 4 2 Combat Bots Only 6 | . 1 2 2 1 . 3 4 . . . 4 1 6 2 . 6 4 3 4 . Max Kills in Single Turn 4 | 1 1 2 2 1 . 1 2 . 1 . 3 1 3 2 2 4 3 1 2 2 Gunslinging 1 | . . . . . . . 1 . . . . . 1 . . . 1 . 1 . Exploded 3 | . . 2 2 . . 1 1 . . . 2 . . . . 3 . . . . Melee . | . . . . . . . . . . . . . . . . . . . . . Uniques/NPCs Destroyed 1 | . . . . 1 . . . . . . . . . . . . . . . . YI-UF0 (-9/Mines) Combat | -11 -10 -10 -9 -9 -9 -8 -8 -8 -7 -6 -6 -5 -5 -5 -5 -5 -4 -3 -2 -1 -------- Run | Scr Mat Min Mat Min Exi Min Mat Gar Fac Fac DSF Fac Ext Cet Arc Hub Fac Res Res Acc Damage Taken 6607 | . 171 159 150 799 . 384 1283 . . . 621 69 1990 28 59 197 423 137 137 . Core 961 | . 22 16 60 208 . 30 223 . . . 114 . 231 13 . . 36 . 8 . Absorbed by Shields 1247 | . . . . . . . . . . . . 25 618 27 20 71 204 140 142 . Reduced by Siege Mode 180 | . . . . . . . . . . . . . 110 . . . 47 15 8 . Redirected to Shielding 95 | . . . . . . . . . . . 12 . 49 . . 34 . . . . Core Remaining (%) 84 | 100 . 84 . . . 25 . 59 100 . 86 . . . . 75 96 100 99 100 Volleys Fired 381 | 11 23 7 26 20 . 12 91 . 1 . 15 3 61 11 4 12 37 16 22 9 Largest 5 | 2 2 2 2 2 . 2 3 . 3 . 4 4 4 4 4 4 4 4 5 5 Hottest 333 | 40 40 50 46 46 . 56 114 . 103 . 129 120 126 126 126 333 240 135 201 199 Shots Fired 988 | 22 46 10 51 40 . 14 178 . 3 . 42 12 235 44 16 39 91 58 65 22 Gun 946 | 22 46 4 50 40 . 11 171 . 3 . 36 12 235 44 16 39 91 58 52 16 Cannon 30 | . . . . . . . 5 . . . 6 . . . . . . . 13 6 Launcher 12 | . . 6 1 . . 3 2 . . . . . . . . . . . . . Special . | . . . . . . . . . . . . . . . . . . . . . Kinetic 935 | 22 46 4 50 40 . 11 157 . 2 . 27 12 235 44 16 35 89 58 65 22 Thermal 38 | . . . . . . . 16 . 1 . 15 . . . . 4 2 . . . Explosive 12 | . . 6 1 . . 3 2 . . . . . . . . . . . . . Electromagnetic 3 | . . . . . . . 3 . . . . . . . . . . . . . Robot Hit Streak 23 | 9 11 8 13 12 . 14 8 . 8 . 11 7 23 16 6 9 15 7 12 3 Robot Miss Streak 5 | 1 2 1 2 2 . 2 5 . . . 3 1 4 4 1 3 2 3 3 3 Penetration Max 1 | . . . . . . . . . . . . . 1 1 1 1 . 1 1 1 Secondary Targets 16 | . . . . . . . 2 . . . . . 8 1 . . 2 1 2 . Max Gunslinging Chain 1 | . . . . . . . 1 . . . . . 1 1 . . 1 1 1 . Shots Hit Robots 646 | 17 33 8 34 32 . 10 115 . 2 . 29 9 159 34 11 21 53 35 36 8 Core Hits 296 | 5 9 7 17 8 . 10 44 . 2 . 21 6 61 19 4 24 20 16 17 6 Critical Kills 15 | . . . . . . . 1 . . . 2 . 4 2 . . 1 3 1 1 Critical Parts Destroyed 5 | . 1 . . 1 . . 1 . . . . . 2 . . . . . . . Critical Strikes 21 | . 1 . . 1 . . 2 . . . 2 . 7 2 . . 1 3 1 1 Meltdown 2 | . . . . . . . . . . . 2 . . . . . . . . . Destroy 19 | . 1 . . 1 . . 2 . . . . . 7 2 . . 1 3 1 1 Melee Attacks 12 | . . . . . . . 9 . 2 . 1 . . . . . . . . . Impact 12 | . . . . . . . 9 . 2 . 1 . . . . . . . . . Slashing . | . . . . . . . . . . . . . . . . . . . . . Piercing . | . . . . . . . . . . . . . . . . . . . . . Sneak Attacks . | . . . . . . . . . . . . . . . . . . . . . Combat Hostiles . | . . . . . . . . . . . . . . . . . . . . . Follow-up Attacks . | . . . . . . . . . . . . . . . . . . . . . Damage Inflicted 17573 | 210 408 276 607 478 . 447 1816 . 65 . 1502 204 4358 1098 331 1797 1674 1165 880 257 Guns 14108 | 210 408 22 469 478 . 131 1663 . 37 . 461 204 4288 1098 331 639 1528 1126 797 218 Cannons 794 | . . . . . . . 73 . . . 640 . . . . . . . 81 . Explosions 2286 | . . 254 138 . . 316 74 . . . 401 . . . . 1103 . . . . Melee . | . . . . . . . . . . . . . . . . . . . . . Ramming 385 | . . . . . . . 6 . 28 . . . 70 . . 55 146 39 2 39 Kinetic 13779 | 210 408 22 469 478 . 131 1473 . 18 . 298 204 4288 1098 331 601 1528 1126 878 218 Thermal 1451 | . . . . . . . 190 . 19 . 1204 . . . . 38 . . . . Explosive 782 | . . 254 138 . . 316 74 . . . . . . . . . . . . . Electromagnetic 1176 | . . . . . . . 73 . . . . . . . . 1103 . . . . Impact . | . . . . . . . . . . . . . . . . . . . . . Slashing . | . . . . . . . . . . . . . . . . . . . . . Piercing . | . . . . . . . . . . . . . . . . . . . . . Highest Corruption 9 | . . . . . . . . . . . . . 1 1 1 7 9 2 . . Average Corruption 1 | . . . . . . . . . . . . . 1 1 1 2 2 2 . . Corruption Purged . | . . . . . . . . . . . . . . . . . . . . . Corruption Blocked . | . . . . . . . . . . . . . . . . . . . . . Effects 15 | . . . . . . . . . . . . . 1 1 3 2 5 3 . . Message Errors 4 | . . . . . . . . . . . . . . . 1 . 3 . . . Matter Fused 4 | . . . . . . . . . . . . . 1 . 1 . . 2 . . Heat Flow Errors 1 | . . . . . . . . . . . . . . 1 . . . . . . Energy Discharges 3 | . . . . . . . . . . . . . . . . 2 1 . . . Data Loss (major) 2 | . . . . . . . . . . . . . . . 1 . 1 . . . Misfires 1 | . . . . . . . . . . . . . . . . . . 1 . . Overload Shots 5 | . . . . . . . . . . . . . . . . 3 2 . . . Effects 1 | . . . . . . . . . . . . . . . . . 1 . . . Heat Surge 1 | . . . . . . . . . . . . . . . . . 1 . . . Overflow Damage 256 | . . . 1 . . . 26 . . . 37 . 10 . . 162 20 . . . Projectiles 23 | . . . . . . . . . . . 23 . . . . . . . . . Explosions 203 | . . . 1 . . . 26 . . . 14 . . . . 162 . . . . Melee 30 | . . . . . . . . . . . . . 10 . . . 20 . . . Knockbacks 4 | . . . . . . . . . . . . . 1 . . . 2 . . 1 Impact 4 | . . . . . . . . . . . . . 1 . . . 2 . . 1 Kinetic . | . . . . . . . . . . . . . . . . . . . . . Secondary . | . . . . . . . . . . . . . . . . . . . . . Self-Inflicted Damage 207 | . . . . . . 62 53 . . . . . . . . 92 . . . . Shots 5 | . . . . . . 2 2 . . . . . . . . 1 . . . . Rammed 21 | . . . . . . . 2 . 1 . . . 2 . . 3 8 2 1 2 Targets Rammed 23 | . . . . . . . 2 . 1 . . . 2 . . 5 8 2 1 2 Kicked . | . . . . . . . . . . . . . . . . . . . . . Crushed 2 | . . . . . . . . . . . . . . . . 2 . . . . Highest Temperature 423 | . 2 29 . . . 29 126 . 18 . 60 76 305 222 112 423 393 77 70 80 Average Temperature 69 | . 2 21 . . . 11 34 . 12 . 21 37 96 60 46 109 93 31 28 28 Received Heat Transfer 1005 | . 99 105 60 . . 198 153 . . . 60 12 228 . 6 54 . 22 8 . Effects 5 | . . . . . . . . . . . . . 2 . . 3 . . . . Shutdowns 1 | . . . . . . . . . . . . . . . . 1 . . . . Energy Bleed 1 | . . . . . . . . . . . . . 1 . . . . . . . Interference 2 | . . . . . . . . . . . . . 1 . . 1 . . . . Matter Decay 1 | . . . . . . . . . . . . . . . . 1 . . . . Siege Activations 21 | . . . . . . . . . . . . . 11 3 1 . 4 1 1 . Total Turns 213 | . . . . . . . . . . . . . 104 22 1 . 37 29 20 . Longest Duration 29 | . . . . . . . . . . . . . 20 14 1 . 27 29 20 . Robots Corrupted 4 | . . . . . . . . . . . . . . . . 4 . . . . Combat Hostiles . | . . . . . . . . . . . . . . . . . . . . . Parts Fried 6 | . . . . . . . . . . . . . . . . 6 . . . . Impact Corruptions 4 | . . . . . . . . . . . . . 2 . . . 2 . . . Robots Melted 2 | . . . . . . . . . . . 2 . . . . . . . . . Combat Hostiles 1 | . . . . . . . . . . . 1 . . . . . . . . . Parts Melted 4 | . . . . . . . . . . . 3 . 1 . . . . . . . Heat Transferred 1590 | . . . . . . . 407 . 37 . 1096 . . . . 50 . . . . Parts Sabotaged . | . . . . . . . . . . . . . . . . . . . . . Parts Stolen . | . . . . . . . . . . . . . . . . . . . . . Parts Stripped . | . . . . . . . . . . . . . . . . . . . . . Power Chain Reactions . | . . . . . . . . . . . . . . . . . . . . . Missiles Intercepted . | . . . . . . . . . . . . . . . . . . . . . Alert | -11 -10 -10 -9 -9 -9 -8 -8 -8 -7 -6 -6 -5 -5 -5 -5 -5 -4 -3 -2 -1 ------- Run | Scr Mat Min Mat Min Exi Min Mat Gar Fac Fac DSF Fac Ext Cet Arc Hub Fac Res Res Acc Peak Influence 1376 | 20 118 121 235 96 . 81 240 156 120 58 318 259 806 934 596 1376 885 619 485 457 Initial 664 | . 13 . 46 91 . . 31 156 81 58 44 166 126 436 365 208 664 464 283 281 Average 322 | 9 52 17 148 72 . 77 71 156 104 58 179 219 456 659 546 191 753 469 351 369 Maximum Alert Level 4 | . . . 1 . . . 1 . . . 1 1 3 3 2 4 3 2 2 2 Low Security (%) 43 | 100 100 100 76 100 . 100 96 100 100 100 67 28 7 . . 73 . . . . Level 1 20 | . . . 24 . . . 3 . . . 32 71 41 . 9 23 . . 73 78 Level 2 23 | . . . . . . . . . . . . . 31 60 90 . 29 100 26 21 Level 3 13 | . . . . . . . . . . . . . 19 39 . . 70 . . . Level 4 . | . . . . . . . . . . . . . . . . 2 . . . . Level 5 . | . . . . . . . . . . . . . . . . . . . . . High Security . | . . . . . . . . . . . . . . . . . . . . . Max Security . | . . . . . . . . . . . . . . . . . . . . . Sterilizations 1 | . . . . . . . . . . . 1 . . . . . . . . . Squads Dispatched 15 | . 1 . 2 . . . 2 . . . 1 . 3 . . 1 3 1 . 1 Investigation 3 | . . . . . . . 1 . . . . . 1 . . 1 . . . . Extermination 2 | . . . . . . . . . . . . . . . . . 1 1 . . Reinforcement 8 | . 1 . 2 . . . 1 . . . 1 . 1 . . . 1 . . 1 Assault 2 | . . . . . . . . . . . . . 1 . . . 1 . . . Garrison . | . . . . . . . . . . . . . . . . . . . . . Intercept . | . . . . . . . . . . . . . . . . . . . . . Searches Triggered . | . . . . . . . . . . . . . . . . . . . . . Construction Impeded 2 | . . . . . . . 1 . . . . . 1 . . . . . . . Haulers Reinforced . | . . . . . . . . . . . . . . . . . . . . . Active Scanning Responses . | . . . . . . . . . . . . . . . . . . . . . Cargo Convoy Interrupts . | . . . . . . . . . . . . . . . . . . . . . Stealth | -11 -10 -10 -9 -9 -9 -8 -8 -8 -7 -6 -6 -5 -5 -5 -5 -5 -4 -3 -2 -1 --------- Run | Scr Mat Min Mat Min Exi Min Mat Gar Fac Fac DSF Fac Ext Cet Arc Hub Fac Res Res Acc Distress Signals 9 | . . . 1 . . . 3 . . . . . 2 2 . . . 1 . . Communications Jammed 75 | . . . . . . . . . . . 3 . . . . 27 2 7 . 36 Distress Signals 70 | . . . . . . . . . . . . . . . . 27 . 7 . 36 Times Spotted 176 | . 3 2 12 1 . 3 33 . 2 . 9 2 42 10 4 8 18 10 12 5 Peak Tracking Total 12 | . 2 2 12 1 . 3 6 . 1 . 4 1 7 5 1 5 4 5 4 2 Tactical Retreats 7 | . . . . . . . . . . . . . 4 . . 1 . 1 1 . Traps | -11 -10 -10 -9 -9 -9 -8 -8 -8 -7 -6 -6 -5 -5 -5 -5 -5 -4 -3 -2 -1 ------- Run | Scr Mat Min Mat Min Exi Min Mat Gar Fac Fac DSF Fac Ext Cet Arc Hub Fac Res Res Acc Traps Triggered 5 | . . . . . . . 1 . . . . . 1 . . 3 . . . . Indirectly 1 | . . . . . . . . . . . . . . . . 1 . . . . Trap Hack Attempts . | . . . . . . . . . . . . . . . . . . . . . Triggered . | . . . . . . . . . . . . . . . . . . . . . Disarmed . | . . . . . . . . . . . . . . . . . . . . . Reprogrammed . | . . . . . . . . . . . . . . . . . . . . . Reused . | . . . . . . . . . . . . . . . . . . . . . Traps Extracted . | . . . . . . . . . . . . . . . . . . . . . Installed . | . . . . . . . . . . . . . . . . . . . . . Triggered . | . . . . . . . . . . . . . . . . . . . . . Machines | -11 -10 -10 -9 -9 -9 -8 -8 -8 -7 -6 -6 -5 -5 -5 -5 -5 -4 -3 -2 -1 ---------- Run | Scr Mat Min Mat Min Exi Min Mat Gar Fac Fac DSF Fac Ext Cet Arc Hub Fac Res Res Acc Machines Disabled 45 | . . 2 . . . . 1 . . . . . 4 1 1 29 5 1 . 1 Max in Single Turn 24 | . . 1 . . . . 1 . . . . . 2 . 1 24 1 1 . 1 Garrison Access 5 | . . . . . . . . . . . . . . . . 1 2 . 2 . Network Hub 2 | . . . . . . . . . . . . . . . . 2 . . . . Machines Sabotaged . | . . . . . . . . . . . . . . . . . . . . . Garrisons Compromised . | . . . . . . . . . . . . . . . . . . . . . Overloaded Fab Kills . | . . . . . . . . . . . . . . . . . . . . . Hacking | -11 -10 -10 -9 -9 -9 -8 -8 -8 -7 -6 -6 -5 -5 -5 -5 -5 -4 -3 -2 -1 --------- Run | Scr Mat Min Mat Min Exi Min Mat Gar Fac Fac DSF Fac Ext Cet Arc Hub Fac Res Res Acc Machines Accessed 52 | . 5 . . . 1 . 11 . 1 1 . 2 11 . . 2 5 2 8 3 Terminals 38 | . 4 . . . . . 9 . . 1 . 1 11 . . 1 3 2 5 1 Fabricators 3 | . . . . . . . . . 1 . . . . . . . . . 1 1 Repair Stations . | . . . . . . . . . . . . . . . . . . . . . Recycling Units 4 | . 1 . . . . . 1 . . . . 1 . . . . . . . 1 Scanalyzers . | . . . . . . . . . . . . . . . . . . . . . Garrison Access 6 | . . . . . . . 1 . . . . . . . . 1 2 . 2 . Total Hacks 148 | . 15 . . . 1 . 34 . 3 1 . 3 17 . . 6 20 8 34 6 Successful 64 | . 9 . . . 1 . 15 . 2 1 . 2 6 . . 4 8 2 10 4 Failed 82 | . 5 . . . . . 18 . 1 . . 1 11 . . 2 12 6 24 2 Catastrophic 16 | . . . . . . . 1 . . . . . 4 . . 1 2 1 6 1 Database Lockouts 2 | . 1 . . . . . 1 . . . . . . . . . . . . . Manual 80 | . 14 . . . 1 . 22 . 1 . . 1 7 1 . 4 8 3 15 3 Terminals 121 | . 14 . . . . . 29 . . 1 . 2 17 . . 5 18 8 26 1 Fabricators 13 | . . . . . . . . . 3 . . . . . . . . . 6 4 Repair Stations . | . . . . . . . . . . . . . . . . . . . . . Recycling Units 6 | . 1 . . . . . 3 . . . . 1 . . . . . . . 1 Scanalyzers . | . . . . . . . . . . . . . . . . . . . . . Garrison Access 7 | . . . . . . . 2 . . . . . . . . 1 2 . 2 . Terminal Hacks 29 | . 4 . . . 1 . 8 . . 1 . 1 4 . . 2 4 1 2 1 Part Schematic 1 | . . . . . . . . . . . . . . . . . 1 . . . Robot Analysis 3 | . 1 . . . . . 2 . . . . . . . . . . . . . Prototype ID Bank 3 | . 1 . . . . . 2 . . . . . . . . . . . . . Open Door 6 | . . . . . . . . . . . . 1 4 . . . . . . 1 Open DSF 1 | . . . . . . . . . . 1 . . . . . . . . . . Level Access Points 2 | . . . . . . . . . . . . . . . . . . 1 1 . Terminal Index 2 | . 1 . . . . . 1 . . . . . . . . . . . . . Unreport Threat 3 | . 1 . . . . . 1 . . . . . . . . 1 . . . . Locate Traps 1 | . . . . . . . . . . . . . . . . . 1 . . . Recall Assault 1 | . . . . . . . . . . . . . . . . . 1 . . . Registered Components 2 | . . . . . . . . . . . . . . . . . 1 . 1 . Zone Layout 3 | . . . . . . . 2 . . . . . . . . 1 . . . . EX-Prototype ID Bank 1 | . . . . . 1 . . . . . . . . . . . . . . . Fabricator Hacks 5 | . . . . . . . . . 2 . . . . . . . . . 2 1 Network Status 3 | . . . . . . . . . 1 . . . . . . . . . 1 1 Build 2 | . . . . . . . . . 1 . . . . . . . . . 1 . Repair Station Hacks . | . . . . . . . . . . . . . . . . . . . . . Recycling Unit Hacks . | . . . . . . . . . . . . . . . . . . . . . Scanalyzer . | . . . . . . . . . . . . . . . . . . . . . Garrison Access Hacks 6 | . . . . . . . 1 . . . . . . . . 1 2 . 2 . Unlock Access 1 | . . . . . . . 1 . . . . . . . . . . . . . Seal Access 5 | . . . . . . . . . . . . . . . . 1 2 . 2 . Unauthorized Hacks 24 | . 5 . . . . . 6 . . . . 1 2 . . 1 2 1 4 2 Terminals 15 | . 4 . . . . . 3 . . . . . 2 . . 1 2 1 2 . Track 2 | . 1 . . . . . 1 . . . . . . . . . . . . . Botnet 10 | . 2 . . . . . 2 . . . . . 2 . . 1 1 1 1 . Operators 3 | . 1 . . . . . . . . . . . . . . . 1 . 1 . Fabricators 3 | . . . . . . . . . . . . . . . . . . . 2 1 Prioritize 1 | . . . . . . . . . . . . . . . . . . . 1 . Haulers 2 | . . . . . . . . . . . . . . . . . . . 1 1 Repair Stations . | . . . . . . . . . . . . . . . . . . . . . Recycling Units 6 | . 1 . . . . . 3 . . . . 1 . . . . . . . 1 Reject 1 | . . . . . . . 1 . . . . . . . . . . . . . Recyclers 4 | . 1 . . . . . 1 . . . . 1 . . . . . . . 1 Mask 1 | . . . . . . . 1 . . . . . . . . . . . . . Scanalyzers . | . . . . . . . . . . . . . . . . . . . . . Garrison Access . | . . . . . . . . . . . . . . . . . . . . . Data Cores Recovered . | . . . . . . . . . . . . . . . . . . . . . Used . | . . . . . . . . . . . . . . . . . . . . . Hacking Detections 41 | . 4 . . . . . 11 . 1 1 . 1 9 . . 1 3 2 6 2 Full Trace Events 2 | . . . . . . . 1 . . . . . 1 . . . . . . . Feedback Events . | . . . . . . . . . . . . . . . . . . . . . Feedback Blocked . | . . . . . . . . . . . . . . . . . . . . . Robot Schematics Acquired . | . . . . . . . . . . . . . . . . . . . . . Robots Built 3 | . . . . . . . . . . . . . . . . . . . 3 . Authchips . | . . . . . . . . . . . . . . . . . . . . . Time 222 | . . . . . . . . . . . . . . . . . . . 222 . Total Robot Build Rating 27 | . . . . . . . . . . . . . . . . . . . 27 . Part Schematics Acquired 1 | . . . . . . . . . . . . . . . . . 1 . . . Parts Built 2 | . . . . . . . . . 2 . . . . . . . . . . . Authchips . | . . . . . . . . . . . . . . . . . . . . . Time 106 | . . . . . . . . . 106 . . . . . . . . . . . Total Part Build Rating 12 | . . . . . . . . . 12 . . . . . . . . . . . Parts Repaired . | . . . . . . . . . . . . . . . . . . . . . Time . | . . . . . . . . . . . . . . . . . . . . . Parts Recycled . | . . . . . . . . . . . . . . . . . . . . . Recycled Matter . | . . . . . . . . . . . . . . . . . . . . . Retrieved Matter . | . . . . . . . . . . . . . . . . . . . . . Retrieved Components . | . . . . . . . . . . . . . . . . . . . . . Parts Scanalyzed . | . . . . . . . . . . . . . . . . . . . . . Part Schematics Acquired . | . . . . . . . . . . . . . . . . . . . . . Parts Damaged . | . . . . . . . . . . . . . . . . . . . . . Bothacking | -11 -10 -10 -9 -9 -9 -8 -8 -8 -7 -6 -6 -5 -5 -5 -5 -5 -4 -3 -2 -1 ------------ Run | Scr Mat Min Mat Min Exi Min Mat Gar Fac Fac DSF Fac Ext Cet Arc Hub Fac Res Res Acc Used RIF Installer 1 | . . . . . . . . 1 . . . . . . . . . . . . Robots Hacked . | . . . . . . . . . . . . . . . . . . . . . Non-combat . | . . . . . . . . . . . . . . . . . . . . . Combat . | . . . . . . . . . . . . . . . . . . . . . Robot Hacks Applied . | . . . . . . . . . . . . . . . . . . . . . Relay Couplers Released . | . . . . . . . . . . . . . . . . . . . . . Fabnet Peak Effective % . | . . . . . . . . . . . . . . . . . . . . . Robots Rewired 5 | . . . . . . . . . . . . . 5 . . . . . . . Allies Hacked . | . . . . . . . . . . . . . . . . . . . . . Hacks Repelled . | . . . . . . . . . . . . . . . . . . . . . Allies | -11 -10 -10 -9 -9 -9 -8 -8 -8 -7 -6 -6 -5 -5 -5 -5 -5 -4 -3 -2 -1 -------- Run | Scr Mat Min Mat Min Exi Min Mat Gar Fac Fac DSF Fac Ext Cet Arc Hub Fac Res Res Acc Total Allies 18 | . . . . . . . . . . . . . 10 5 . . . . 3 . Largest Group 6 | . . . . . . . . . . . . . 5 6 5 4 . . 3 . Highest-Rated Group 623 | . . . . . . . . . . . . . 301 623 527 384 . . 174 . Highest-Rated Ally 159 | . . . . . . . . . . . . . 159 159 143 96 . . 58 . Total Orders 3 | . . . . . . . . . . . . . . 3 . . . . . . STAY 2 | . . . . . . . . . . . . . . 2 . . . . . . FOLLOW 1 | . . . . . . . . . . . . . . 1 . . . . . . Ally Attacks 197 | . . . . . . . . . . . . . 101 50 16 13 . . 17 . Total Damage 5276 | . . . . . . . . . . . . . 2060 1469 743 469 . . 535 . Kills 40 | . . . . . . . . . . . . . 21 11 4 2 . . 2 . Allies Corrupted . | . . . . . . . . . . . . . . . . . . . . . Allies Melted 1 | . . . . . . . . . . . . . . 1 . . . . . . Intel | -11 -10 -10 -9 -9 -9 -8 -8 -8 -7 -6 -6 -5 -5 -5 -5 -5 -4 -3 -2 -1 ------- Run | Scr Mat Min Mat Min Exi Min Mat Gar Fac Fac DSF Fac Ext Cet Arc Hub Fac Res Res Acc Robot Analysis Total 3 | . 1 . . . . . 2 . . . . . . . . . . . . . Derelict Logs Recovered 1 | . . . . 1 . . . . . . . . . . . . . . . . Drone Launches . | . . . . . . . . . . . . . . . . . . . . . Drone Recoveries . | . . . . . . . . . . . . . . . . . . . . . Exploration | -11 -10 -10 -9 -9 -9 -8 -8 -8 -7 -6 -6 -5 -5 -5 -5 -5 -4 -3 -2 -1 ------------- Run | Scr Mat Min Mat Min Exi Min Mat Gar Fac Fac DSF Fac Ext Cet Arc Hub Fac Res Res Acc Turns Passed 9302 | 92 292 175 250 325 421 310 1563 123 267 47 296 166 1428 335 156 227 1061 676 714 378 Spaces Moved 4937 | 50 232 158 153 235 262 172 703 80 155 29 124 84 669 149 80 107 549 351 380 215 Core 12 | 12 . . . . . . . . . . . . . . . . . . . . Treads 4175 | . . . . 66 262 172 703 80 155 29 124 84 669 149 80 107 549 351 380 215 Legs . | . . . . . . . . . . . . . . . . . . . . . Wheels 750 | 38 232 158 153 169 . . . . . . . . . . . . . . . . Hover . | . . . . . . . . . . . . . . . . . . . . . Flight . | . . . . . . . . . . . . . . . . . . . . . Fastest Speed 50 | 50 80 95 86 86 160 160 155 155 155 152 152 155 155 160 160 160 160 160 160 160 Average Speed 148 | 72 90 95 87 106 160 160 158 155 155 152 152 155 157 160 160 160 160 161 160 160 Slowest Speed 165 | 80 95 95 101 160 160 160 160 155 160 152 152 155 160 160 160 160 160 165 165 160 Overloaded Moves . | . . . . . . . . . . . . . . . . . . . . . Propulsion Burnouts . | . . . . . . . . . . . . . . . . . . . . . Robots Hopped . | . . . . . . . . . . . . . . . . . . . . . Cave-ins Triggered . | . . . . . . . . . . . . . . . . . . . . . Exploration Rate (%) 38 | 4 47 50 26 49 65 72 67 32 5 2 76 4 88 59 85 22 24 11 16 7 Regions Visited 20 Branch Regions 8 Pre-discovered Areas 2 | . . 1 . 1 . . . . . . . . . . . . . . . . Known Exits Taken 4 | . . . . . . . 1 . . 1 . . . . . . . 1 1 . Unknown Exits Taken 14 | 1 1 1 1 1 1 1 . . 1 . . 1 1 1 1 1 1 . . . Scrap Searched 2 | . . . . 1 . 1 . . . . . . . . . . . . . . Spaces Dug 43 | . . . . . . . 10 . 2 . 1 . . . . 2 13 . 10 5 Terrain Destroyed 492 | . . 14 14 . . 25 29 . 2 . 29 . 4 3 3 314 31 7 12 5 Melee 12 | . . . . . . . 9 . 2 . 1 . . . . . . . . . Projectile 69 | . . . . . . . 1 . . . 1 . 4 3 3 2 31 7 12 5 AOE 411 | . . 14 14 . . 25 19 . . . 27 . . . . 312 . . . . Terrain Rammed . | . . . . . . . . . . . . . . . . . . . . . Walls Destroyed . | . . . . . . . . . . . . . . . . . . . . . Machines Disabled . | . . . . . . . . . . . . . . . . . . . . . Actions | -11 -10 -10 -9 -9 -9 -8 -8 -8 -7 -6 -6 -5 -5 -5 -5 -5 -4 -3 -2 -1 --------- Run | Scr Mat Min Mat Min Exi Min Mat Gar Fac Fac DSF Fac Ext Cet Arc Hub Fac Res Res Acc Total 6173 | 81 267 170 218 268 264 191 984 79 177 31 198 110 909 226 100 134 658 429 446 233 Wait 143 | 4 1 . 1 2 . . 57 . . . 10 3 25 9 7 . 3 16 5 . Move 4916 | 49 231 157 152 234 261 171 702 78 154 28 123 83 668 148 79 107 548 350 379 214 Hop . | . . . . . . . . . . . . . . . . . . . . . Pick Up 135 | 10 6 2 10 1 3 2 33 . 5 . 15 3 9 11 3 . 9 5 5 3 Fast Attach 48 | 3 . . 5 1 . . 12 . 2 . 1 1 5 3 . . 4 5 6 . Attach 76 | 4 1 . 4 5 . 2 18 . 2 2 5 2 4 9 2 . 8 4 2 2 Detach 28 | . 1 . 4 . . . 10 . 1 . 1 1 1 3 . . 1 3 2 . Swap 226 | . 2 4 8 3 . 4 23 1 2 1 14 12 61 16 3 10 29 17 14 2 Drop 122 | . 2 . 8 2 . . 27 . 7 . 13 2 9 16 2 1 11 11 10 1 Fire 381 | 11 23 7 26 20 . 12 91 . 1 . 15 3 61 11 4 12 37 16 22 9 Melee 12 | . . . . . . . 9 . 2 . 1 . . . . . . . . . Ram . | . . . . . . . . . . . . . . . . . . . . . Kick . | . . . . . . . . . . . . . . . . . . . . . Crush 22 | . . . . . . . 2 . 1 . . . 2 . . 4 8 2 1 2 Escape Stasis 1 | . . . . . . . . . . . . . 1 . . . . . . . Rewire 63 | . . . . . . . . . . . . . 63 . . . . . . . Trap . | . . . . . . . . . . . . . . . . . . . . . Miscellaneous . | . . . . . . . . . . . . . . . . . . . . . Route ------- -11/Scrapyard -10/Materials (discovered 3 exits: [*Mat] / [*Min x2]) -10/Mines -9/Materials -9/Mines (discovered 3 exits: *Mat x2 / *Exi) -9/Exiles -8/Mines -8/Materials (discovered 5 exits: *Fac x2 / [*Sto x2] / Gar) -8/Garrison -7/Factory -6/Factory -6/DSF -5/Factory -5/Extension (discovered 2 exits: *Fac / *Cet) -5/Cetus (discovered 2 exits: *Fac / [*Arc]) -5/Archives (discovered 3 exits: *Fac / *Hub x2) -5/Hub_04(d) -4/Factory -3/Research (discovered 3 exits: *Res x3) -2/Research (discovered 3 exits: *Acc x3) -1/Access To Epsilon Eridani History --------- Turn | Location | Event 11 | -11/Scrapyard | Discovered new exit (range 16) 93 | -11/Scrapyard | Entered Materials 212 | -10/Materials | Discovered new exit (range 15) 299 | -10/Materials | Discovered new exit (range 11) 311 | -10/Materials | Build established: Mutant 351 | -10/Materials | Discovered new exit (range 13) 362 | -10/Materials | Central database locked down 385 | -10/Materials | Entered Mines 399 | -10/Mines | Learned location of Storage (-8) 518 | -10/Mines | Received a Rocket Launcher from a helpful Derelict 530 | -10/Mines | Discovered new exit (range 6) 560 | -10/Mines | Entered Materials 560 | -9/Materials | Evolved 2 slots: Propulsion x1, Utility x1 794 | -9/Materials | Discovered new exit (range 13) 810 | -9/Materials | Entered Mines 811 | -9/Mines | YI-UF0 nonchalantly dropped a Grenade Launcher on the ground 916 | -9/Mines | Discovered new exit (range 13) 939 | -9/Mines | Discovered new exit (range 7) 1006 | -9/Mines | Core integrity fell below 50% 1009 | -9/Mines | Destroyed YI-UF0 1036 | -9/Mines | Lost 6 parts (1p3n2u) 1086 | -9/Mines | Build established: Scavenger-Mutant 1104 | -9/Mines | Assembled infested the area 1109 | -9/Mines | Assisted by a Guerilla fighting off Assembled 1128 | -9/Mines | Deemed a non-threat by the Exiles lab entrance 1128 | -9/Mines | Discovered new exit (range 5) 1135 | -9/Mines | Entered Exiles 1175 | -9/Exiles | Met 8R-AWN 1203 | -9/Exiles | Met EX-HEX 1308 | -9/Exiles | Met EX-BIN 1325 | -9/Exiles | Aligned with FarCom system 1327 | -9/Exiles | Given EX-Vault access code 1365 | -9/Exiles | Opened EX-Vault 1376 | -9/Exiles | Found YOLO Cannon 1409 | -9/Exiles | Warned to stay clear of 0b10 Research branches 1456 | -9/Exiles | Met EX-DEC 1543 | -9/Exiles | Discovered new exit (range 10) 1556 | -9/Exiles | Left Exiles lab with YOLO Cannon 1556 | -9/Exiles | Entered Mines 1597 | -8/Mines | Lost 3 parts (1p2w) 1855 | -8/Mines | Discovered new exit (range 7) 1866 | -8/Mines | Entered Materials 1866 | -8/Materials | Evolved 2 slots: Utility x1, Weapon x1 2029 | -8/Materials | Lost 3 parts (2n1w) 2175 | -8/Materials | Lost 5 parts (1p1n1u2w) 2463 | -8/Materials | Build established: Scavenger-Skirmisher 2482 | -8/Materials | Central database locked down 2783 | -8/Materials | Discovered new exit (range 4) 3002 | -8/Materials | Discovered new exit (range 5) 3241 | -8/Materials | Discovered new exit (range 6) 3361 | -8/Materials | Discovered new exit (range 9) 3427 | -8/Materials | Identified exit to Garrison 3429 | -8/Materials | Entered Garrison 3437 | -8/Garrison | Installed Relay Interface Framework 3502 | -8/Garrison | Triggered checkpoint 3539 | -8/Garrison | Discovered new exit (range 8) 3552 | -8/Garrison | Entered Factory 3552 | -7/Factory | Evolved 2 slots: Utility x2 3585 | -7/Factory | Discovered new exit (range 6) 3760 | -7/Factory | Fabricated Hvy. Treads? 3819 | -7/Factory | Entered another Factory area 3819 | -6/Factory | Evolved 2 slots: Utility x1, Weapon x1 3866 | -6/Factory | Identified exit to DSF 3866 | -6/Factory | Entered DSF 3924 | -6/DSF | Additional patrols routed to DSF 4079 | -6/DSF | Sterilization system engaged 4099 | -6/DSF | Ambient heat levels rising (+10) 4114 | -6/DSF | Ambient heat levels rising (+10) 4125 | -6/DSF | Discovered new exit (range 18) 4129 | -6/DSF | Ambient heat levels rising (+10) 4144 | -6/DSF | Ambient heat levels rising (+10) 4159 | -6/DSF | Ambient heat levels rising (+10) 4162 | -6/DSF | Entered Factory 4162 | -5/Factory | Evolved 2 slots: Propulsion x1, Utility x1 4239 | -5/Factory | Discovered new exit (range 11) 4328 | -5/Factory | Entered Extension 4591 | -5/Extension | Rescued a captive Derelict 4763 | -5/Extension | Rescued a captive Derelict 4979 | -5/Extension | Spotted B-75 Beast 5006 | -5/Extension | Allies destroyed B-75 Beast 5035 | -5/Extension | Spotted B-75 Beast 5053 | -5/Extension | Disrupted transfer network 5057 | -5/Extension | Destroyed B-75 Beast 5228 | -5/Extension | First assault squad dispatched 5261 | -5/Extension | Rescued A7 5526 | -5/Extension | Rescued a captive Derelict 5527 | -5/Extension | Rescued a captive Derelict 5703 | -5/Extension | Discovered new exit (range 10) 5704 | -5/Extension | Discovered new exit (range 6) 5756 | -5/Extension | Entered Cetus 5756 | -5/Cetus | Accompanied by 5 allies (A7) 5761 | -5/Cetus | Acquired a Cetus Manufacturing Module code from A7 5780 | -5/Cetus | Spotted Cetus Guard 5782 | -5/Cetus | Spotted Cetus Guard 5784 | -5/Cetus | Spotted Cetus Guard 5787 | -5/Cetus | Spotted Cetus Guard 5787 | -5/Cetus | Allies destroyed Cetus Guard 5789 | -5/Cetus | Allies destroyed Cetus Guard 5790 | -5/Cetus | Destroyed Cetus Guard 5798 | -5/Cetus | Destroyed Cetus Guard 5908 | -5/Cetus | Started Cetus Manufacturing Module 5921 | -5/Cetus | Discovered new exit (range 20) 5933 | -5/Cetus | Manufactured an Enhanced Grunt 5953 | -5/Cetus | Spotted Cetus Guard 5953 | -5/Cetus | Spotted Cetus Guard 5956 | -5/Cetus | Allies destroyed Cetus Guard 5956 | -5/Cetus | Spotted Cetus Guard 5956 | -5/Cetus | Spotted Cetus Guard 5957 | -5/Cetus | Allies destroyed Cetus Guard 5958 | -5/Cetus | Manufactured an Enhanced Grunt 5960 | -5/Cetus | Destroyed Cetus Guard 5974 | -5/Cetus | Destroyed Cetus Guard 5983 | -5/Cetus | Manufactured an Enhanced Grunt 5988 | -5/Cetus | Discovered new exit (range 19) 6002 | -5/Cetus | Met Revision 17 6008 | -5/Cetus | Manufactured an Enhanced Grunt 6033 | -5/Cetus | Manufactured an Enhanced Grunt 6041 | -5/Cetus | Cetus Manufacturing Module disabled 6091 | -5/Cetus | Entered Archives 6091 | -5/Archives | Accompanied by 5 allies (A7) 6134 | -5/Archives | Discovered new exit (range 19) 6152 | -5/Archives | Discovered new exit (range 20) 6171 | -5/Archives | Discovered new exit (range 20) 6247 | -5/Archives | Entered Hub_04(d) 6247 | -5/Hub_04(d) | Accompanied by 4 allies 6408 | -5/Hub_04(d) | Discovered new exit (range 14) 6467 | -5/Hub_04(d) | Network Hub disabled 6471 | -5/Hub_04(d) | Network Hub disabled 6474 | -5/Hub_04(d) | Entered Factory 6474 | -4/Factory | Evolved 2 slots: Power x1, Utility x1 6724 | -4/Factory | First assault squad dispatched 7467 | -4/Factory | Discovered new exit (range 11) 7535 | -4/Factory | Entered Research 7535 | -3/Research | Evolved 2 slots: Utility x2 7732 | -3/Research | Discovered new exit (range 16) 7960 | -3/Research | Identified exit to Research 8010 | -3/Research | Found Prototype Processor 8010 | -3/Research | Identified Spectral Analyzer 8211 | -3/Research | Entered another Research area 8211 | -2/Research | Evolved 2 slots: Utility x1, Weapon x1 8280 | -2/Research | Identified exit to Access 8333 | -2/Research | Fabricated G-73 Enforcer? 8498 | -2/Research | Build established: Scavenger-Mutant 8757 | -2/Research | Found Prototype Launcher 8757 | -2/Research | Identified Ragnarok Missile Launcher 8848 | -2/Research | Spotted B-90 Cyclops 8925 | -2/Research | Entered Access 8925 | -1/Access | Evolved 2 slots: Utility x2 9273 | -1/Access | Discovered new exit (range 15) 9303 | *** | Escaped! Last Messages --------------- 09118_ Dropped Adv. Shield Generator. 09124_ Acquired Tesla Rifle. 09222_ Connecting with Recycling Unit... >>Trojan(Recyclers) Trojan loaded successfully. Testing... Recycler tracking enabled and active. 09248_ Slug penetrates R-10 Processor. 09248_ R-10 Processor suffers critical hit (Destroy). 09248_ R-10 Processor destroyed. 09248_ Slug penetrates Door. 09248_ Slug penetrates Wall. 09255_ Acquired 76 matter. 09270_ R-10 Processor collects Com. Wheel. 09273_ EXIT=FOUND 09274_ R-10 Processor collects Med. Storage Unit. 09290_ Connecting with Terminal... >>Open(Door) Sealed Barrier opened. 09295_ The Access Shell folds into the floor. Map ----- +----------------------------------------------------+ | ?????????????????????#??####???##?#??# ## """"" | | ????????????????????????#?#?##?#?##?## ## | | ??????????????????????? #?### ? ? # ## | | ???????????????????????###??? ? # R########## | | ?????????????????????? ? #? ? # # | | ?????????????????????#? # """ # # | | ?????????????????????#?? # ""? # + | | ???????????????????? ??? ?# " # # | | ??????????????????? #?? ? ?# +!%+ " | | ????????????????????## ? # #=*# """ | | ????????????????? ??? # ? # # """ | | ?????????????????????# ? ? ####+##### # " | | ?????????????????? ??+ ### ########## | | ?????????????? ? ?? ?? ?+ ########## | | ?????????????#????#??? ########## ##?###?### | | ????????????#???????## ? ########## ########## | | ??????????#???#?#???#? ??? ?#??###### ########## | | ???????????????#?????# ? ##?#####?# ####?#?### | | ???????????????#??###?#???##?###?#?### ###?#?#### | | ??????????#????#???###?#??#######?#### #??###???# | | ??????????????#????########### ####### #?######## | | ??????????????? ???"" ##?####### | | ??????????????BB ?"?" ##?##?#??# | | ?????????? ???BB?"??" ######?##? | | ?????????????? ??"?"" ########## | | ??????????? ?? ???""" "@ ######?### | | ??????????????? ??"?" "" w##?#####?# | | ?????????? ???? ?"??" #########? | | ??????????????BB?""?" ###?#?##?# | | ???????? ?????BB??""" """ """ #?#???#### | | ??????????? ??? ?"??" """T""" ####?#???# | | ?????????????##?????########## ####### ####?##??? | | ???????????????????#???#?#???####?#?## ##?##?#??# | | ??????????#???#????#?###?##???#?#?#?#? ##???#???? | | ??????????? ? ?? ???#?#?###?#####??#?? #??? ?? ? | | ?????????#????? ?????#?#??##??#?####?# # ? ???? | | ?????????????? ???##?#?????#??##??#? +? ? ??? | | ??????????????? ???#?##?###? ? #?#???? #??????? | | ?????????????"??????? ?? ? ? ?? ?? #?? "????? | | ??????????????"? ?? ???? ??? ?? ?? ? # ???? ?? | | ???????????????????# ??#?#???????????? # ???? ? | | ?????????????????????????####?#???##?? # ? ?????? | | ???????????????????#???Y??###?###????# ?##??##??? | | ??????????????????????? ? ? ???? ??+ ?###?????? | | ???????????????????? ?????????? ????????????#????? | | ?????????????????????????"? ????? ???????#?#?#???? | | ?????????????????????????? ?????? ???????????????? | | ???????????????????????????"???????? ????????????? | | ?????????????????????????????????? ??????????????? | | ?????????????????????????????????????????????????? | +----------------------------------------------------+ Best States ------------- Heat Dissipation 78 Energy Generation 45 Energy Capacity 950 Matter Stores 300 Matter Capacity 300 Sight Range 24 Terrain Scan Range 20 Terrain Scan Density 210 Jamming Range 14 Cloak Strength 3 Additional Mass Support 12 Armor Coverage 225 Resistance: KI 30 Utility Shielding 66 Weapon Cycling 20 Evasion (%) 44 Targeting Accuracy 6 Target Analysis 8 Core Analysis 6 Armor Integrity Analysis 30 Recoil Reduction 4 Kinecelleration 40 Salvage Targeting 3 Offensive Hacking 12 Defensive Hacking 14 Item Schematics ----------------- Adv. Matter Compressor | -4/Factory | Hacked Robot Schematics ------------------ None Fabricated ------------ Hvy. Treads | x2 | -7/Factory | Preloaded G-73 Enforcer | x3 | -2/Research | Preloaded Alien Tech Used ----------------- None Achievements -------------- None Challenges ------------ None Game ------ Seed NodeConcussiveSaw Manual? 0 Play Time 02:16:16 Cumulative 635.4 hours Start 2022.05.18 @ 21:17:15 End 2022.05.19 @ 01:13:14 Sessions 11 Manual Loads 0 Difficulty Rogue Special Mode None Game No. 325 Rogue 198 Adventurer 125 Explorer 2 Win Type 0 Total 65 Types 56/3/3/1/1/0/0/0/1 Lore% 75 Gallery% 86 Achievement% 71 Wizard Run 0 Options --------- ASCII 0 Keyboard 1 Movement Numpad Keybinds 0 Fullscreen 1 Font 36/TerminusFine Map View 76x50 Tactical HUD 1 Map Filters NONE Filters NONE Steam 1 RUN: ca61b1d0-ebc5-4bbc-906a-a4f45787b146